[Event "31st MPL National U18 Chess-ch 2022"]
[Site "Pollachi"]
[Date "2022.04.20"]
[Round "5.6"]
[White "Ayushh Ravikumar"]
[Black "John Veny Akkarakaran"]
[Result "0-1"]
[ECO "A13"]
[WhiteElo "2269"]
[BlackElo "1687"]
[Annotator "TA"]
[PlyCount "164"]
[EventDate "2022.04.18"]
[EventCountry "IND"]
[SourceTitle "playchess.com"]
[Source "ChessBase"]
[SourceQuality "1"]
[TimeControl "5400+30"]

{[%evp 10,164,25,27,16,14,30,16,18,0,14,0,0,0,8,0,19,20,8,0,0,0,17,-35,15,0,6,-15,0,-6,-16,-19,76,58,53,-35,0,0,0,0,0,0,0,-7,97,0,0,-98,20,20,27,15,15,0,0,0,20,-655,0,-103,0,-31,0,0,19,-451,-452,-419,-433,-500,-485,-481,-496,-634,-613,-783,-766,-1044,-682,-835,-784,-2114,-1537,-1478,-1472,-1245,-1360,-1086,-955,-1077,-1135,-2199,-2251,-12828,-10901,-3080,-2527,-1385,-981,-1450,-1081,-1364,-1123,-2093,-1805,-2486,-2129,-12837,-2389,-6721,-2862,-29992,-29993,-29993,-29994,-29994,-29995,-29995,-29990,-29990,-29988,-29990,-29989,-29981,-29979,-29979,-12847,-12848,-12847,-12848,-12847,-12848,-12848,-29988,-29989,-29989,-29990,-12850,-12850,-27999,-27999,-27999,-27999,-27999,-27999,-27999,-27999,-27999,-27999,-27999,-27999,-27997,-27997,-27998,-27998,-27999,-27999]} 1. Nf3 {[%emt 0:00:47]} Nf6 {[%emt 0:00:07]} 2. b3 {[%emt 0:00:39]} d5 {[%emt 0:02:29]} 3. Bb2 {[%emt 0:00:23]} e6 {[%emt 0:03:16]} 4. g3 {[%emt 0:03:03]} Bd6 {[%emt 0:00:44]} 5. Bg2 {[%emt 0:00:17]} Nbd7 {[%emt 0:03:27]} 6. c4 {[%emt 0:01:12]} O-O {[%emt 0:01:55] A13: English Opening: 1...e6.} 7. O-O {[%emt 0:00:28]} b6 {[%emt 0:05:54]} 8. Nc3 {[%emt 0:02:32]} Bb7 {[%emt 0:00:52] The position is equal.} 9. cxd5 {[%emt 0:06:40]} exd5 {[%emt 0:00:11]} 10. Nd4 {[%emt 0:05:14]} Re8 {[%emt 0:02:32]} 11. Rc1 {[%emt 0:00:21]} a6 {[%emt 0:04:45] [#] Inhibits Ncb5.} 12. Re1 $146 {[%emt 0:06:49]} ({Predecessor:} 12. e3 c5 13. Nde2 b5 14. Nf4 Nb6 15. a4 Bc6 16. a5 Bxf4 17. exf4 Nbd7 18. b4 {½-½ (28) Rotstein,A (2455)-Sveshnikov,E (2560) Bled 1997}) 12... g6 {[%emt 0:08:32]} 13. Nc2 {[%emt 0:03:56]} Bf8 {[%emt 0:04:25]} 14. d4 {[%emt 0:06:15]} (14. e3 {is more complex.} Ne4 15. Ne2 Rc8 16. Nf4) 14... h5 {[%emt 0:03:06]} 15. e3 {[%emt 0:03:19]} a5 {[%emt 0:06:45]} 16. a3 {[%emt 0:05:44]} (16. Na3 $11) 16... Bg7 {[%emt 0:04:26]} (16... Ne4 $15) 17. b4 {[%emt 0:00:09]} h4 {[%emt 0:02:56]} 18. bxa5 {[%emt 0:11:27]} Rxa5 {[%emt 0:05:07]} 19. Nb4 {[%emt 0:08:20]} Nf8 {[%emt 0:01:44]} 20. Ne2 {[%emt 0:32:55]} c5 {[%emt 0:37:17]} (20... Ne6 $11) 21. dxc5 $16 {[%emt 0:00:00]} bxc5 {[%emt 0:00:00]} 22. Nd3 {[%emt 0:00:00]} ({White should play} 22. Bxf6 $14 Bxf6 23. Nxd5) 22... Ne6 {[%emt 0:00:00]} 23. Nef4 {[%emt 0:01:30]} Nxf4 {[%emt 0:00:00]} 24. Nxf4 {[%emt 0:00:00]} Ne4 {[%emt 0:00:00]} 25. Bxg7 {[%emt 0:00:00]} Kxg7 {[%emt 0:00:00]} 26. Qb3 {[%emt 0:00:00]} Qa8 {[%emt 0:00:00]} (26... Bc6 $11) 27. Ra1 {[%emt 0:00:00]} (27. Qb2+ $1 $16 Kg8 28. gxh4) 27... Bc6 {[%emt 0:00:00]} 28. Red1 {[%emt 0:00:00] [#]} (28. Qb2+ $11 Kg8 29. gxh4) 28... c4 {[%emt 0:00:00]} (28... d4 $1 $17 {And now ...Ba4 would win.} 29. Bxe4 (29. exd4 Ba4 $17) 29... Rxe4 30. exd4 cxd4) 29. Qb6 $11 {[%emt 0:00:00]} hxg3 {[%emt 0:00:00] The board is on fire.} 30. hxg3 {[%emt 0:00:00]} Kg8 {[%emt 0:00:00]} 31. Bxe4 {[%emt 0:02:47]} Rxe4 {[%emt 0:00:00]} (31... dxe4 $2 32. Rd6 Ba4 33. Qd4 $18) 32. Rab1 {[%emt 0:01:43]} c3 {[%emt 0:00:13]} 33. Qc7 $2 {[%emt 0:00:00][%mdl 8192]} (33. Rdc1 $11) 33... Re8 $2 {[%emt 0:00:25]} ({Better is} 33... c2 $19 34. Ne2 (34. Rb8+ $2 Re8 $19) 34... cxd1=Q+ 35. Rxd1 Rc4) 34. Rdc1 {[%emt 0:00:26]} (34. Rb6 $11 {keeps the balance.} Rc8 35. Qd6 Rxa3 36. Qf6) 34... Rxa3 {[%emt 0:01:21]} (34... d4 $17 35. exd4 Ra7) 35. Qd6 {[%emt 0:00:32][%cal Of4g6]} Rc8 {[%emt 0:01:47]} (35... d4 $5 {[%cal Rd4e3]} 36. Nxg6 Ra7 $11) 36. Qf6 {[%emt 0:00:23]} Be8 {[%emt 0:00:37]} 37. Nh5 $2 {[%emt 0:01:09][%mdl 8192]} gxh5 $19 {[%emt 0:00:14]} 38. Qg5+ Kf8 {[%emt 0:00:36]} 39. Qh6+ {[%emt 0:00:24] [#]} Ke7 $1 {[%emt 0:00:39]} 40. Qxh5 {[%emt 0:00:31]} f6 {[%emt 0:01:02] Against Qe5+} 41. Qh7+ {[%emt 0:01:05]} Bf7 {[%emt 0:00:19] White must now prevent ...Rh8.} 42. Rb6 {[%emt 0:00:30]} Ra6 {[%emt 0:03:47]} 43. Rb3 {[%emt 0:00:00]} Ra1 {[%emt 0:00:00]} 44. Rxa1 {[%emt 0:00:26]} Qxa1+ {[%emt 0:00:00]} 45. Kh2 Qa8 {[%emt 0:00:00]} 46. Qb1 {[%emt 0:00:59]} Qc6 {[%emt 0:00:19]} 47. Rb7+ Rc7 {[%emt 0:02:11]} 48. Qb4+ {[%emt 0:00:43]} Kd7 {[%emt 0:00:00]} 49. Rb6 {[%emt 0:00:40]} Qc5 {[%emt 0:00:00] Strongly threatening ...Qxb4.} 50. Qg4+ {[%emt 0:01:12]} Ke7 {[%emt 0:00:00]} 51. Rb1 {[%emt 0:00:30]} c2 {[%emt 0:00:00]} 52. Rc1 {[%emt 0:00:00]} Qa3 {[%emt 0:00:00]} 53. Qf4 Qd6 {[%emt 0:00:49] ...Qxf4 is the strong threat.} 54. Qf5 {[%emt 0:01:30]} Qe5 {[%emt 0:01:03]} 55. Qd3 {[%emt 0:00:30]} Qb2 {[%emt 0:00:20]} 56. Qd2 {[%emt 0:00:00]} Qc3 {[%emt 0:00:27]} 57. Qe2 {[%emt 0:00:09]} Bg6 {[%emt 0:00:00]} 58. Qg4 Kf7 {[%emt 0:02:51] ( -> ...Qd2)} 59. Qf4 {[%emt 0:01:19]} Qe5 {[%emt 0:00:30]} 60. Qb4 {[%emt 0:00:28]} Be4 {[%emt 0:00:00]} 61. f3 {[%emt 0:01:04]} Qh5+ {[%emt 0:00:00]} 62. Kg1 {[%emt 0:00:30]} Qxf3 {[%emt 0:00:00][%csl Ge4][%cal Rf3g2]} 63. Qd2 {[%emt 0:00:00]} Qxg3+ {[%emt 0:00:00]} 64. Kf1 {[%emt 0:00:00]} Qf3+ {[%emt 0:00:00]} 65. Ke1 {[%emt 0:00:00]} Qh1+ {[%emt 0:00:00]} 66. Kf2 {[%emt 0:00:12]} Qg2+ {[%emt 0:03:30]} 67. Ke1 {[%emt 0:00:05]} Qxd2+ {[%emt 0:00:00]} (67... Qg1+ $142 68. Ke2 Qg3 69. Kf1 Rb7 70. Qf2 Bd3+ 71. Ke1 Rb1 72. Qxg3 Rxc1+ 73. Kf2 Rf1+ 74. Kg2 c1=Q 75. Qh4 Be4+ 76. Qxe4 dxe4 77. Kg3 Qxe3+ 78. Kh4 Rh1+ 79. Kg4 Qg5#) 68. Kxd2 {[%emt 0:00:04][%mdl 4096] Endgame KRB-KR} Ke6 69. Ke2 {[%emt 0:00:05]} Ke5 {[%emt 0:01:30]} 70. Kd2 {[%emt 0:00:04]} Rb7 {[%emt 0:00:30]} 71. Ke2 {[%emt 0:04:00]} Rb1 {[%emt 0:00:00]} 72. Kd2 {[%emt 0:00:00]} Rxc1 {[%emt 0:00:00]} 73. Kxc1 {[%emt 0:00:00]} d4 {[%emt 0:01:30]} 74. exd4+ {[%emt 0:00:00]} Kxd4 {[%emt 0:00:00] Black mates.} 75. Kd2 {[%emt 0:00:00]} f5 {[%emt 0:00:00]} 76. Kc1 {[%emt 0:00:00]} f4 {[%emt 0:00:00]} 77. Kd2 {[%emt 0:00:00]} f3 {[%emt 0:02:00]} 78. Kc1 {[%emt 0:00:00]} f2 {[%emt 0:00:00]} 79. Kd2 {[%emt 0:00:00]} c1=Q+ {[%emt 0:01:00]} 80. Kxc1 {[%emt 0:00:00]} f1=Q+ {[%emt 0:00:00]} 81. Kb2 {[%emt 0:00:00]} Qb1+ {[%emt 0:00:00]} 82. Ka3 {[%emt 0:00:00]} Kc3 {[%emt 0:00:00] Weighted Error Value: White=0.71/Black=0.42} 0-1

[Event "31st MPL National U18 Chess-ch 2022"]
[Site "Pollachi"]
[Date "2022.04.20"]
[Round "5.7"]
[White "Ayush Sharma"]
[Black "Sathvik Adiga"]
[Result "1-0"]
[ECO "C95"]
[WhiteElo "2302"]
[BlackElo "1562"]
[Annotator "TA"]
[PlyCount "59"]
[EventDate "2022.04.18"]
[EventCountry "IND"]
[SourceTitle "playchess.com"]
[Source "ChessBase"]
[SourceQuality "1"]
[TimeControl "5400+30"]

{[%evp 21,59,22,35,38,79,60,69,70,102,107,83,94,95,103,108,97,188,199,221,221,231,245,622,608,601,585,586,578,558,380,2254,2251,2015,1891,1566,1531,1508,1512,5915,5786]} 1. e4 {[%emt 0:00:02]} e5 {[%emt 0:00:03]} 2. Nf3 {[%emt 0:00:07]} Nc6 {[%emt 0:00:02]} 3. Bb5 {[%emt 0:00:09]} a6 {[%emt 0:00:03]} 4. Ba4 {[%emt 0:00:05]} Nf6 {[%emt 0:00:05]} 5. O-O {[%emt 0:00:07]} Be7 {[%emt 0:00:03]} 6. Re1 {[%emt 0:00:07]} b5 {[%emt 0:00:04]} 7. Bb3 {[%emt 0:00:04]} O-O {[%emt 0:00:05]} 8. c3 {[%emt 0:00:06][%cal Bc2c3,Bc3c4,Bc4d5][%mdl 32]} d6 {[%emt 0:00:05]} 9. h3 {[%emt 0:00:12]} Nb8 {[%emt 0:00:03]} 10. d4 {[%emt 0:00:06]} Nbd7 {[%emt 0:00:03]} 11. c4 {[%emt 0:04:14]} Bb7 {[%emt 0:12:27]} 12. Nc3 {[%emt 0:01:47] C95: Closed Ruy Lopez: Breyer Variation with 10 d4.} b4 {[%emt 0:06:50]} 13. Nd5 {[%emt 0:00:48]} Nxd5 {[%emt 1:17:07]} 14. cxd5 {[%emt 0:09:18] White is slightly better.} c6 {[%emt 0:00:00] [#]} 15. dxe5 $1 {[%emt 0:04:56] [#]} Nxe5 $146 {[%emt 0:00:00]} ({Predecessor:} 15... dxe5 16. d6 Bf6 17. Be3 a5 18. Rc1 Rc8 19. Ba4 Re8 20. Nd2 Re6 21. Nb3 Nb8 {½-½ (45) Mihalichenko,V (2276)-Tarlev,K (2358) Kharkov 2003}) 16. dxc6 {[%emt 0:02:39]} Nxf3+ {[%emt 0:00:00]} 17. Qxf3 {[%emt 0:00:14]} Bxc6 {[%emt 0:00:00] [#]} 18. Bf4 $1 {[%emt 0:00:55] &Bianco is more active.} Bg5 {[%emt 0:00:00]} (18... a5 $16 {is a better defense.}) 19. Rad1 $18 {[%emt 0:03:15][%cal Ba1d1,Bd1d6,Bd6h6][%mdl 32]} Be7 {[%emt 0:00:00]} 20. Qg3 {[%emt 0:06:18] And now Bh6 would win.} Re8 {[%emt 0:00:00]} 21. Bxd6 {[%emt 0:02:14]} Qb6 $2 {[%emt 0:00:00]} (21... Bh4 22. Bxf7+ Kxf7 23. Qb3+ (23. Qg4 Qg5 $15) (23. Qf3+ Qf6 $17) 23... Re6) 22. Qf4 {[%emt 0:02:51]} Bxd6 {[%emt 0:00:00]} 23. Bxf7+ {[%emt 0:00:02]} ({Weaker is} 23. Qxd6 Rac8 24. Rc1 Qb7 $18) 23... Kh8 {[%emt 0:00:00]} 24. Rxd6 {[%emt 0:00:02][%cal Od6h6] aiming for Rh6!} Rf8 {[%emt 0:00:00]} 25. Rc1 {[%emt 0:03:38]} Rac8 {[%emt 0:00:00] [#]} (25... Qc7 26. Rcxc6 Qxf7 27. Qxf7 Rxf7 28. Rxa6 Rc8) 26. Rh6 $3 {[%emt 0:00:34][%cal Oh6h7][%mdl 512] Threatening mate with Rxh7+! White is clearly winning.} Rxf7 {[%emt 0:00:00]} 27. Qxf7 {[%emt 0:00:02][%cal Of7f5] Qf5! would kill now.} gxh6 {[%emt 0:00:00]} 28. Qf6+ {[%emt 0:00:02]} Kg8 {[%emt 0:00:00]} 29. Qe6+ {[%emt 0:00:00]} Kg7 {[%emt 0:00:00]} 30. Qxc8 {[%emt 0:00:05] Black did not feel at home in the position after the opening.  Weighted Error Value: White=0.15 (very precise) /Black=0.59} 1-0

[Event "31st MPL National U18 Chess-ch 2022"]
[Site "Pollachi"]
[Date "2022.04.20"]
[Round "5.8"]
[White "Ilamparthi A R"]
[Black "Sarvade Mihiir"]
[Result "1-0"]
[ECO "D32"]
[WhiteElo "1969"]
[BlackElo "1559"]
[Annotator "TA"]
[PlyCount "69"]
[EventDate "2022.04.18"]
[EventCountry "IND"]
[SourceTitle "playchess.com"]
[Source "ChessBase"]
[SourceQuality "1"]
[TimeControl "5400+30"]

{[%evp 25,69,39,40,27,30,39,25,0,0,0,20,20,22,21,33,26,26,23,23,26,45,34,33,30,29,8,8,8,8,7,14,0,6,0,0,-29,0,0,349,347,345,327,598,591,5281,1765]} 1. c4 {[%emt 0:00:02]} e6 {[%emt 0:03:39]} 2. Nc3 {[%emt 0:00:11]} d5 {[%emt 0:00:04]} 3. e3 {[%emt 0:02:09]} Nf6 {[%emt 0:02:20]} 4. Nf3 {[%emt 0:00:24]} c5 {[%emt 0:03:29]} 5. cxd5 {[%emt 0:00:29]} exd5 {[%emt 0:01:15]} 6. d4 {[%emt 0:00:06]} Nc6 {[%emt 0:01:13]} 7. Be2 {[%emt 0:02:27]} Be7 {[%emt 0:03:26]} 8. O-O {[%emt 0:01:24]} O-O {[%emt 0:00:11]} 9. b3 {[%emt 0:01:40]} Be6 {[%emt 0:05:23]} 10. Bb2 {[%emt 1:26:38]} Rc8 {[%emt 0:09:32]} 11. Rc1 {[%emt 0:00:00]} Ne4 {[%emt 0:15:34]} 12. dxc5 {[%emt 0:00:00]} Nxc5 {[%emt 0:01:38]} 13. Nb5 {[%emt 0:00:00]} Ne4 {[%emt 0:05:09] [#]} 14. Rc2 $146 {[%emt 0:00:00] D32: Tarrasch Defence: Sidelines and lines without g3.} ({Predecessor:} 14. Nfd4 Qa5 15. Nxe6 fxe6 16. a3 Bf6 17. Bxf6 Rxf6 18. b4 Qd8 19. Bd3 a6 20. Bxe4 axb5 21. Bd3 Qb6 {1-0 (42) Cvek,R (2517)-Oganian,M (2370) Pardubice 2015}) 14... Bf6 {[%emt 0:04:46]} 15. Bxf6 {[%emt 0:00:00]} Qxf6 {[%emt 0:01:42]} 16. a3 {[%emt 0:00:00] White has an edge.} Qg6 {[%emt 0:11:57]} 17. Re1 {[%emt 0:03:30]} a6 {[%emt 0:04:35]} 18. Nbd4 {[%emt 0:00:00]} Nxd4 {[%emt 0:03:04]} 19. Nxd4 {[%emt 0:00:00]} Rxc2 {[%emt 0:03:16]} 20. Qxc2 {[%emt 0:00:00]} Rc8 {[%emt 0:00:59] Inhibits Qc7.} 21. Qb2 {[%emt 0:00:00]} Qf6 {[%emt 0:17:48]} 22. Bf3 {[%emt 0:00:00]} Nd6 {[%emt 0:00:00]} 23. Qd2 {[%emt 0:00:00]} Nf5 {[%emt 0:00:00]} 24. Nxf5 {[%emt 0:00:00]} Qxf5 {[%emt 0:00:00]} 25. Qb4 {[%emt 0:00:00]} b5 {[%emt 0:02:00]} 26. Qd6 {[%emt 0:00:00]} Qd3 {[%emt 0:00:00]} 27. Qxa6 {[%emt 0:00:00]} Qxb3 {[%emt 0:00:00]} 28. h3 {[%emt 0:00:00]} g6 {[%emt 0:01:30]} 29. Qd6 {[%emt 0:00:00]} Ra8 {[%emt 0:00:00]} 30. e4 {[%emt 0:00:00][%cal Re4d5]} dxe4 {[%emt 0:00:00]} 31. Rxe4 {[%emt 0:00:00]} Rxa3 $2 {[%emt 0:00:50][%mdl 8192] [#]} ({Much less strong is} 31... Qxa3 32. Rxe6 fxe6 33. Qxe6+ Kg7 34. Qe5+ Kh6 35. Bxa8 Qxa8 36. Qxb5 $16) (31... Rc8 $11) 32. Qb8+ $1 $18 {[%emt 0:00:00]} Kg7 {[%emt 0:00:06] Strongly threatening ...Qb2.} 33. Qe5+ {[%emt 0:00:00]} Kg8 $2 {[%emt 0:00:27] [#]} (33... f6 34. Qxe6 Qxe6 35. Rxe6 h5) 34. Rd4 $1 {[%emt 0:00:00][%cal Rd4d8]} Ra1+ {[%emt 0:01:06]} 35. Kh2 {[%emt 0:00:00] Weighted Error Value: White=0.06 (flawless) /Black=0.56} 1-0

[Event "31st MPL National U18 Chess-ch 2022"]
[Site "Pollachi"]
[Date "2022.04.20"]
[Round "5.9"]
[White "Rakshith Srinivasan"]
[Black "Naveen Kanniyappan S"]
[Result "1-0"]
[ECO "C54"]
[WhiteElo "1856"]
[BlackElo "1564"]
[Annotator "NA RC COMBH"]
[PlyCount "121"]
[EventDate "2022.04.18"]
[EventCountry "IND"]
[SourceTitle "playchess.com"]
[Source "ChessBase"]
[SourceQuality "1"]
[TimeControl "5400+30"]

{[%evp 8,112,16,12,35,12,22,16,37,15,29,12,32767,32767,32767,32767,32767,-6,11,-20,-6,-61,-35,-54,-33,-22,-25,-33,0,-4,0,0,0,0,32767,0,0,32767,32767,12,53,72,60,42,56,54,139,155,176,171,218,186,219,186,257,231,255,281,259,267,32767,32767,32767,32767,32767,32767,32767,32767,32767,32767,32767,32767,32767,32767,32767,32767,32767,32767,32767,32767,32767,32767,32767,32767,32767,32767,32767,32767,32767,32767,32767,32767,32767,356,32767,32767,32767,32767,476,32767,32767,32767,32767,32767,32767,32767,567]} 1. e4 {[%emt 1:31:00]} e5 {[%emt 0:00:00]} 2. Nf3 Nc6 {[%emt 1:31:30]} 3. Bc4 {[%emt 0:00:00]} Nf6 {[%emt 0:00:30]} 4. d3 {[%emt 0:00:00]} Bc5 {[%emt 0:00:00]} 5. c3 {[%emt 0:02:00]} d6 {[%emt 0:00:00]} 6. O-O {[%emt 0:00:00]} O-O {[%emt 0:01:30]} 7. Nbd2 {[%emt 0:01:00]} Na5 {[%emt 0:00:30]} 8. Bb5 {[%emt 0:00:00]} a6 {[%emt 0:00:30]} 9. Ba4 {[%emt 0:01:00]} b5 {[%emt 0:00:30]} 10. Bc2 {[%emt 0:00:30]} Bb6 {[%emt 0:00:00]} 11. a4 {[%emt 0:00:30]} Bb7 {[%emt 0:01:00]} 12. d4 {[%emt 0:01:00]} Nc6 {[%emt 0:00:30]} 13. d5 {[%emt 0:00:30]} Ne7 {[%emt 0:00:30]} 14. c4 {[%emt 0:00:30]} ({White should try} 14. h3 $11) 14... c6 {[%emt 0:00:30]} 15. b3 {[%emt 0:00:30]} b4 {[%emt 0:00:30]} ({Much weaker is} 15... cxd5 16. exd5 h6 17. Ba3 $11) 16. h3 {[%emt 0:00:30]} a5 {[%emt 0:00:30]} 17. Re1 {[%emt 0:00:30]} Bc8 {[%emt 0:00:30]} 18. Nf1 {[%emt 0:00:30]} h6 {[%emt 0:00:30]} 19. dxc6 {[%emt 0:00:30]} Nxc6 {[%emt 0:00:30]} 20. Be3 {[%emt 0:00:30]} Bc5 {[%emt 0:00:30]} 21. Qe2 {[%emt 0:00:30]} Qe7 {[%emt 0:00:30]} 22. Rad1 {[%emt 0:00:00]} Ne8 {[%emt 0:00:00]} 23. Ng3 {[%emt 0:00:00]} Qf6 {[%emt 0:01:00]} (23... Nf6 $11) 24. Nf5 {[%emt 0:01:30]} Kh8 {[%emt 0:01:30]} 25. Rd5 {[%emt 0:00:30]} (25. Bxc5 $16 dxc5 26. Rd5) 25... Bxe3 $1 {[%emt 0:00:30]} 26. Qxe3 {[%emt 0:00:30]} Bxf5 {[%emt 0:00:30]} ({Black should play} 26... Ne7 $1 $14) 27. exf5 {[%emt 0:00:30]} Ne7 {[%emt 0:00:30]} 28. Rd2 {[%emt 0:00:30]} Ra6 {[%emt 0:00:00]} (28... Rc8 {might work better.} 29. g4 Nc6) 29. g4 {[%emt 0:00:30]} Nc6 {[%emt 0:01:00]} 30. Kg2 {[%emt 0:01:00]} Nc7 {[%emt 0:00:00]} (30... Qe7 {was necessary.} 31. Bd3 Ra7) 31. h4 {[%emt 0:00:00]} Nd4 $18 {[%emt 0:01:00]} 32. Nxd4 {[%emt 0:01:00]} exd4 {[%emt 0:00:30]} 33. Qg3 {[%emt 0:00:30]} ({But not} 33. Rxd4 Qd8 34. Qe7 Rc6 35. Qxd8 Rxd8 $18) ({Don't take} 33. Qxd4 Qxh4 34. Rh1 Qg5 $18) 33... d3 {[%emt 0:00:30]} 34. Rxd3 {[%emt 0:00:30]} Re8 {[%emt 0:00:30]} 35. Rde3 {[%emt 0:00:30]} Rxe3 {[%emt 0:00:30]} 36. Rxe3 {[%emt 0:00:00]} Ra8 {[%emt 0:00:30]} 37. g5 {[%emt 0:01:00]} Qb2 {[%emt 0:00:30]} 38. Be4 {[%emt 0:00:30]} Rd8 {[%emt 0:00:30]} 39. Qf4 {[%emt 0:00:00]} Qe5 {[%emt 0:00:30]} 40. Kf3 {[%emt 0:01:00]} Qxf4+ {[%emt 0:00:00]} 41. Kxf4 {[%emt 0:00:00]} Na6 {[%emt 0:00:00]} 42. Bd5 {[%emt 0:00:00]} f6 {[%emt 0:00:00]} 43. Kg4 {[%emt 0:00:00]} Nc5 {[%emt 0:02:30]} 44. Kh5 {[%emt 0:00:00]} Kh7 {[%emt 0:00:30]} 45. gxf6 {[%emt 0:00:00]} Nd7 {[%emt 0:00:00]} 46. Kg4 {[%emt 0:03:00]} Nxf6+ {[%emt 0:01:00]} 47. Kf4 {[%emt 0:00:00]} Nh5+ {[%emt 0:00:30]} 48. Ke4 {[%emt 0:04:00]} g6 {[%emt 0:01:00]} 49. Be6 {[%emt 0:00:00]} Nf6+ {[%emt 0:00:30]} 50. Kd4 {[%emt 0:01:00]} g5 {[%emt 0:00:00]} 51. hxg5 {[%emt 0:00:30]} hxg5 {[%emt 0:00:00]} 52. Bd5 {[%emt 0:00:00]} Rd7 {[%emt 0:00:00]} 53. Re6 {[%emt 0:01:00]} Kg7 {[%emt 0:00:00]} 54. Bc6 {[%emt 0:01:30]} Rd8 {[%emt 0:02:30]} 55. Re7+ {[%emt 0:00:00]} Kh6 {[%emt 0:00:00]} 56. f3 {[%emt 0:02:30]} g4 {[%emt 0:01:00]} 57. fxg4 {[%emt 0:00:00]} Nxg4 {[%emt 0:00:00]} 58. Rd7 {[%emt 0:00:00]} Rxd7 {[%emt 0:00:00]} 59. Bxd7 {[%emt 0:00:00]} Nf6 {[%emt 0:00:00]} 60. Be6 {[%emt 0:00:00]} Kg7 {[%emt 0:00:00]} 61. c5 {[%emt 0:00:00]} 1-0

[Event "31st MPL National U18 Chess-ch 2022"]
[Site "Pollachi"]
[Date "2022.04.20"]
[Round "5.10"]
[White "Vengatesh Krishnan C"]
[Black "Jani Kushal R"]
[Result "1-0"]
[ECO "E92"]
[WhiteElo "1506"]
[BlackElo "1746"]
[Annotator "NA RC COMBH"]
[PlyCount "81"]
[EventDate "2022.04.18"]
[EventCountry "IND"]
[SourceTitle "playchess.com"]
[Source "ChessBase"]
[SourceQuality "1"]
[TimeControl "5400+30"]

1. d4 {[%emt 0:00:04]} Nf6 {[%emt 1:31:00]} 2. c4 {[%emt 0:00:12]} g6 {[%emt 0:00:30]} 3. Nc3 {[%emt 1:31:44]} Bg7 {[%emt 0:00:30]} 4. e4 {[%emt 0:00:30]} d6 {[%emt 0:00:30]} 5. Nf3 {[%emt 0:00:30]} O-O {[%emt 0:00:30]} 6. Be2 {[%emt 0:00:30]} e5 {[%emt 0:00:00]} 7. Bg5 exd4 {[%emt 0:01:00]} 8. Nxd4 {[%emt 0:01:00]} Re8 {[%emt 0:00:00]} 9. f3 Nc6 {[%emt 0:00:00]} 10. Nc2 h6 {[%emt 0:01:30]} 11. Be3 {[%emt 0:01:30]} Be6 {[%emt 0:00:30]} 12. Qd2 {[%emt 0:00:30]} Ne5 {[%emt 0:00:30]} 13. b3 {[%emt 0:00:30]} Nh5 {[%emt 0:00:30]} 14. O-O-O {[%emt 0:00:30]} g5 {[%emt 0:00:30]} 15. h4 {[%emt 0:00:30]} Nf4 {[%emt 0:00:30]} 16. hxg5 {[%emt 0:00:00]} hxg5 {[%emt 0:00:30]} 17. Rdf1 {[%emt 0:01:00]} Qf6 {[%emt 0:00:00]} 18. Nd1 {[%emt 0:00:30]} Nc6 {[%emt 0:00:00]} 19. g3 Nxe2+ {[%emt 0:01:30]} 20. Qxe2 {[%emt 0:01:00]} Qg6 {[%emt 0:00:30]} 21. g4 {[%emt 0:00:30]} Bf6 {[%emt 0:00:30]} 22. Rh5 {[%emt 0:00:00]} a6 {[%emt 0:00:00]} 23. Qd2 {[%emt 0:00:00]} Kf8 {[%emt 0:00:00]} 24. Bxg5 {[%emt 0:00:00]} Ke7 {[%emt 0:00:00]} 25. Bxf6+ {[%emt 0:02:00]} Qxf6 {[%emt 0:00:00]} 26. g5 {[%emt 0:00:00]} Qg7 {[%emt 0:00:00]} 27. f4 Bg4 {[%emt 0:03:00]} 28. Nde3 {[%emt 0:01:30]} Rh8 {[%emt 0:00:30]} 29. Rxh8 {[%emt 0:00:30]} Qxh8 {[%emt 0:00:30]} 30. Nxg4 {[%emt 0:00:30]} Qh3 {[%emt 0:00:00]} 31. Rg1 b5 {[%emt 0:01:00]} 32. Qd5 {[%emt 0:01:00]} bxc4 {[%emt 0:00:30]} 33. Qxc6 {[%emt 0:00:00]} cxb3 {[%emt 0:00:30]} 34. axb3 {[%emt 0:01:00]} Rh8 {[%emt 0:00:00]} 35. Qxc7+ {[%emt 0:00:00]} Kf8 {[%emt 0:00:00]} 36. Qd8+ {[%emt 0:00:00]} Kg7 {[%emt 0:00:00]} 37. Qf6+ {[%emt 0:01:30]} Kg8 {[%emt 0:00:00]} 38. Nh6+ {[%emt 0:00:00]} Rxh6 {[%emt 0:00:00]} 39. gxh6+ {[%emt 0:00:00]} Qg3 {[%emt 0:00:00]} 40. Rxg3+ {[%emt 0:00:00]} Kf8 {[%emt 0:00:00]} 41. Qd8# {[%emt 0:00:00]} 1-0